[Event "VIII Iberoamericano Mexico 2022"]
[Site "Mexico City"]
[Date "2022.02.14"]
[Round "3.50"]
[White "Fernandez Rivero, Karla July"]
[Black "Zacarias Martinez, Daniel"]
[Result "1-0"]
[ECO "E05"]
[WhiteElo "2025"]
[BlackElo "1673"]
[Annotator "ChessBase"]
[PlyCount "131"]
[EventDate "2022.02.12"]
[EventType "swiss"]
[EventCountry "MEX"]
[SourceTitle "playchess.com"]
[Source "ChessBase"]
[SourceQuality "1"]
[TimeControl "5400+30"]

1. d4 {[%emt 0:00:02]} d5 {[%emt 0:07:23]} 2. Nf3 {[%emt 0:00:13]} Nf6 {[%emt 0:00:08]} 3. c4 {[%emt 0:00:17]} e6 {[%emt 0:00:09]} 4. g3 {[%emt 0:00:18]} Be7 {[%emt 0:00:09]} 5. Bg2 {[%emt 0:00:17]} O-O {[%emt 0:00:10]} 6. O-O {[%emt 0:00:23]} dxc4 {[%emt 0:00:26]} 7. Qc2 {[%emt 0:00:33]} a6 {[%emt 0:00:16]} 8. Qxc4 {[%emt 0:00:30]} b5 {[%emt 0:00:23]} 9. Qc2 {[%emt 0:00:25]} Bb7 {[%emt 0:00:18]} 10. Bd2 {[%emt 0:00:44]} Be4 {[%emt 0:02:11]} 11. Qc1 {[%emt 0:01:03]} Nd5 {[%emt 0:01:45]} 12. Rd1 {[%emt 0:06:26]} Nd7 {[%emt 0:01:20]} 13. Ba5 {[%emt 0:01:53]} Qc8 {[%emt 0:11:53]} 14. Nbd2 {[%emt 0:06:24]} Bg6 {[%emt 0:02:17]} 15. e4 {[%emt 0:06:36]} N5b6 {[%emt 0:01:59]} 16. Qc6 {[%emt 0:01:44]} Nb8 {[%emt 0:09:45]} 17. Qc2 {[%emt 0:01:12]} N8d7 {[%emt 0:08:26]} 18. Rac1 {[%emt 0:02:39]} Bd8 {[%emt 0:32:21]} 19. Qd3 {[%emt 0:25:18]} Qb7 {[%emt 0:05:01]} 20. b4 {[%emt 0:05:22]} Rc8 {[%emt 0:01:11]} 21. Qe3 {[%emt 0:01:42]} Be7 {[%emt 0:03:33]} 22. Ne1 {[%emt 0:01:21]} Bh5 {[%emt 0:00:51]} 23. f3 {[%emt 0:00:42]} h6 {[%emt 0:00:23]} 24. Nd3 {[%emt 0:07:28]} Bg5 {[%emt 0:04:52]} 25. f4 {[%emt 0:01:02]} Be7 {[%emt 0:01:10]} 26. Rf1 {[%emt 0:01:02]} c6 {[%emt 0:02:08]} 27. h4 {[%emt 0:02:54]} Nf6 {[%emt 0:01:28]} 28. Nc5 {[%emt 0:06:23]} Bxc5 {[%emt 0:01:01]} 29. dxc5 {[%emt 0:00:08]} Ng4 {[%emt 0:00:57]} 30. Qe2 {[%emt 0:01:36]} Nf6 {[%emt 0:00:20]} 31. Qd3 {[%emt 0:02:53]} Nbd7 {[%emt 0:00:28]} 32. Nf3 {[%emt 0:00:48]} Rfe8 {[%emt 0:00:54]} 33. Rcd1 {[%emt 0:01:03]} Qb8 {[%emt 0:00:21]} 34. Rd2 {[%emt 0:01:48]} Bg6 {[%emt 0:00:28]} 35. Nh2 {[%emt 0:04:41]} Nf8 {[%emt 0:00:26]} 36. Qe3 {[%emt 0:03:34]} Bh5 {[%emt 0:00:22]} 37. Re1 {[%emt 0:01:08]} Re7 {[%emt 0:00:36]} 38. Bf3 {[%emt 0:00:51]} Bxf3 {[%emt 0:00:24]} 39. Qxf3 {[%emt 0:00:22]} Rd7 {[%emt 0:00:11]} 40. Red1 {[%emt 0:00:24]} Rxd2 {[%emt 0:00:05]} 41. Rxd2 {[%emt 0:00:04]} Re8 {[%emt 0:01:05]} 42. Rd6 {[%emt 0:00:48]} Qb7 {[%emt 0:00:32]} 43. Ng4 {[%emt 0:00:37]} Nxg4 {[%emt 0:00:29]} 44. Qxg4 {[%emt 0:00:05]} Re7 {[%emt 0:00:08]} 45. e5 {[%emt 0:02:24]} Rd7 {[%emt 0:00:25]} 46. Qf3 {[%emt 0:00:46]} Rxd6 {[%emt 0:00:24]} 47. cxd6 {[%emt 0:00:12]} Nd7 {[%emt 0:00:40]} 48. Kg2 {[%emt 0:01:52]} Qc8 {[%emt 0:00:16]} 49. Qe3 {[%emt 0:00:53]} c5 {[%emt 0:00:30]} 50. bxc5 {[%emt 0:00:35]} Qxc5 {[%emt 0:00:26]} 51. Qxc5 {[%emt 0:00:14]} Nxc5 {[%emt 0:00:23]} 52. Bb6 {[%emt 0:01:19]} Nd7 {[%emt 0:00:17]} 53. Ba7 {[%emt 0:00:26]} Kf8 {[%emt 0:00:17]} 54. Kf3 {[%emt 0:00:11]} Ke8 {[%emt 0:00:08]} 55. Ke4 {[%emt 0:00:30]} Kd8 {[%emt 0:01:16]} 56. g4 {[%emt 0:00:26]} g6 {[%emt 0:00:28]} 57. h5 {[%emt 0:00:36]} Kc8 {[%emt 0:01:08]} 58. hxg6 {[%emt 0:00:33]} fxg6 {[%emt 0:00:08]} 59. f5 {[%emt 0:00:11]} gxf5+ {[%emt 0:00:53]} 60. gxf5 {[%emt 0:00:06]} exf5+ {[%emt 0:00:38]} 61. Kxf5 {[%emt 0:00:07]} Nxe5 {[%emt 0:01:27]} 62. Kxe5 {[%emt 0:00:06]} Kd7 {[%emt 0:00:05]} 63. Be3 {[%emt 0:00:20]} h5 {[%emt 0:00:25]} 64. Kd5 {[%emt 0:00:12]} a5 {[%emt 0:00:42]} 65. Bf4 {[%emt 0:00:17]} b4 {[%emt 0:00:49]} 66. Kc5 {[%emt 0:00:20]} 1-0

[Event "VIII Iberoamericano Mexico 2022"]
[Site "Mexico City"]
[Date "2022.02.15"]
[Round "4.25"]
[White "Ortiz Verdezoto, Anahi"]
[Black "Perez Rodriguez, Luis Manuel"]
[Result "0-1"]
[ECO "D10"]
[WhiteElo "2047"]
[BlackElo "2324"]
[Annotator "RC"]
[PlyCount "73"]
[EventDate "2022.02.12"]
[EventType "swiss"]
[EventCountry "MEX"]
[SourceTitle "playchess.com"]
[Source "ChessBase"]
[SourceQuality "1"]
[TimeControl "5400+30"]

1. d4 {[%emt 0:00:06]} d5 {[%emt 0:00:14]} 2. c4 {[%emt 0:00:15]} c6 {[%emt 0:00:07]} 3. cxd5 {[%emt 0:00:11]} cxd5 {[%emt 0:00:08]} 4. Bf4 {[%emt 0:00:10]} Nf6 {[%emt 0:00:23]} 5. e3 {[%emt 0:00:28]} Nc6 {[%emt 0:00:09]} 6. Nc3 {[%emt 0:00:30]} a6 {[%emt 0:00:35]} 7. Bd3 {[%emt 0:00:08]} Bg4 {[%emt 0:01:30]} 8. Nge2 {[%emt 0:00:29]} e6 {[%emt 0:00:46]} 9. O-O {[%emt 0:02:19]} Bd6 {[%emt 0:02:34]} 10. Bxd6 {[%emt 0:02:01]} Qxd6 {[%emt 0:04:32]} 11. Rc1 {[%emt 0:03:16]} O-O {[%emt 0:04:15]} 12. Qd2 {[%emt 0:03:18]} Bxe2 {[%emt 0:00:46]} 13. Bxe2 {[%emt 0:06:01]} Rac8 {[%emt 0:06:46]} 14. Rfd1 {[%emt 0:06:01]} Rc7 {[%emt 0:05:41]} 15. Na4 {[%emt 0:05:52]} Ne4 {[%emt 0:04:09]} 16. Qe1 {[%emt 0:00:51]} Rfc8 {[%emt 0:07:03]} 17. f3 {[%emt 0:13:30]} Nf6 {[%emt 0:00:44]} 18. a3 {[%emt 0:00:43]} e5 {[%emt 0:07:48]} 19. dxe5 {[%emt 0:12:54]} Qxe5 {[%emt 0:05:06]} 20. Rd3 {[%emt 0:06:11]} Re8 {[%emt 0:04:51]} 21. b4 {[%emt 0:12:22]} Rce7 {[%emt 0:05:40]} 22. Qd2 {[%emt 0:06:27]} Qf5 {[%emt 0:08:44]} 23. Nc5 {[%emt 0:01:24]} Ne5 {[%emt 0:01:49]} 24. Rd4 {[%emt 0:00:14]} h5 {[%emt 0:04:32]} 25. e4 {[%emt 0:05:41]} dxe4 {[%emt 0:02:35]} 26. Nxe4 {[%emt 0:01:14]} Nc6 {[%emt 0:03:41]} 27. Ng3 {[%emt 0:06:10]} Qe5 {[%emt 0:02:08]} 28. Rdc4 {[%emt 0:00:17]} Rd7 {[%emt 0:05:21]} 29. Qc3 {[%emt 0:00:50]} Nd4 {[%emt 0:02:05]} 30. Bf1 {[%emt 0:02:42]} h4 {[%emt 0:00:44]} 31. Nh1 {[%emt 0:00:54]} h3 {[%emt 0:00:56]} 32. Ng3 {[%emt 0:01:04]} hxg2 {[%emt 0:05:07]} 33. Kxg2 {[%emt 0:00:09]} Nd5 {[%emt 0:00:22]} 34. Rxd4 {[%emt 0:02:04]} Nxc3 {[%emt 0:01:16]} 35. Rxd7 {[%emt 0:00:02]} Nd5 {[%emt 0:00:54]} 36. Ne4 {[%emt 0:01:06]} Qb2+ {[%emt 0:00:21]} 37. Kg1 {[%emt 0:01:06]} 0-1

[Event "VIII Iberoamericano Mexico 2022"]
[Site "Mexico City"]
[Date "2022.02.15"]
[Round "4.45"]
[White "Lopez Garcia, Miguel Angel"]
[Black "Martinez Morales, Geovanni"]
[Result "1/2-1/2"]
[ECO "C18"]
[WhiteElo "1710"]
[BlackElo "2098"]
[Annotator "NA"]
[PlyCount "39"]
[EventDate "2022.02.12"]
[EventType "swiss"]
[EventCountry "MEX"]
[SourceTitle "playchess.com"]
[Source "ChessBase"]
[SourceQuality "1"]
[TimeControl "5400+30"]

1. e4 {[%emt 0:00:33]} e6 {[%emt 0:00:10]} 2. d4 {[%emt 0:00:09]} d5 {[%emt 0:00:08]} 3. Nc3 {[%emt 0:00:04]} Bb4 {[%emt 0:00:12]} 4. e5 {[%emt 0:00:05]} c5 {[%emt 0:00:22]} 5. a3 {[%emt 0:00:06]} Bxc3+ {[%emt 0:00:05]} 6. bxc3 {[%emt 0:00:04]} Ne7 {[%emt 0:00:17]} 7. Qg4 {[%emt 0:01:09]} Qc7 {[%emt 0:00:08]} 8. Qxg7 {[%emt 0:00:05]} Rg8 {[%emt 0:00:09]} 9. Qxh7 {[%emt 0:00:04]} Nbc6 {[%emt 0:00:27]} 10. Ne2 {[%emt 0:01:24]} cxd4 {[%emt 0:00:23]} 11. f4 {[%emt 0:00:16]} dxc3 {[%emt 0:00:29]} 12. Qd3 {[%emt 0:00:28]} Bd7 {[%emt 0:00:16]} 13. Qxc3 {[%emt 0:17:32]} Nf5 {[%emt 0:01:45]} 14. h3 {[%emt 0:08:03]} d4 {[%emt 0:12:10]} 15. Qd3 {[%emt 0:04:44]} O-O-O {[%emt 0:00:45]} 16. g4 {[%emt 0:03:55]} Nh4 {[%emt 0:04:02]} 17. Qg3 {[%emt 0:00:55]} Qa5+ {[%emt 0:02:31]} 18. Kf2 $14 {[%emt 0:09:20]} Rh8 {[%emt 0:13:33]} 19. Bb2 {[%emt 0:10:26]} Qd5 {[%emt 0:11:42]} 20. Rh2 {[%emt 0:41:08]} 1/2-1/2

[Event "VIII Iberoamericano Mexico 2022"]
[Site "Mexico City"]
[Date "2022.02.15"]
[Round "4.46"]
[White "Ruiz Perez, Juan Octavio"]
[Black "Cordero Jimenez, Alexander"]
[Result "1-0"]
[ECO "C41"]
[WhiteElo "2074"]
[BlackElo "1597"]
[Annotator "ChessBase"]
[PlyCount "91"]
[EventDate "2022.02.12"]
[EventType "swiss"]
[EventCountry "MEX"]
[SourceTitle "playchess.com"]
[Source "ChessBase"]
[SourceQuality "1"]
[TimeControl "5400+30"]

1. e4 {[%emt 0:00:04]} d6 {[%emt 0:00:31]} 2. d4 {[%emt 0:00:13]} Nf6 {[%emt 0:00:10]} 3. Nc3 {[%emt 0:00:07]} e5 {[%emt 0:00:10]} 4. Nf3 {[%emt 0:00:32]} Nbd7 {[%emt 0:00:17]} 5. Bc4 {[%emt 0:00:36]} Be7 {[%emt 0:00:31]} 6. O-O {[%emt 0:01:06]} O-O {[%emt 0:00:37]} 7. Re1 {[%emt 0:00:29]} c6 {[%emt 0:00:18]} 8. a4 {[%emt 0:00:22]} Qc7 {[%emt 0:00:26]} 9. h3 {[%emt 0:04:07]} a5 {[%emt 0:03:28]} 10. Ba2 {[%emt 0:00:55]} h6 {[%emt 0:00:12]} 11. Be3 {[%emt 0:00:42]} Re8 {[%emt 0:01:12]} 12. Nh4 {[%emt 0:09:40]} Nf8 {[%emt 0:02:06]} 13. Qf3 {[%emt 0:06:19]} Bd8 {[%emt 0:13:34]} 14. d5 {[%emt 0:13:36]} Nxd5 {[%emt 0:09:32]} 15. exd5 {[%emt 0:01:48]} Bxh4 {[%emt 0:00:22]} 16. dxc6 {[%emt 0:00:23]} bxc6 {[%emt 0:00:22]} 17. Nb5 {[%emt 0:01:22]} cxb5 {[%emt 0:03:52]} 18. Qxa8 {[%emt 0:00:15]} bxa4 {[%emt 0:01:35]} 19. Qe4 {[%emt 0:01:17]} Be7 {[%emt 0:01:35]} 20. Qxa4 {[%emt 0:07:06]} Bd7 {[%emt 0:01:56]} 21. Qc4 {[%emt 0:01:08]} Qxc4 {[%emt 0:00:44]} 22. Bxc4 {[%emt 0:00:03]} a4 {[%emt 0:00:37]} 23. b3 {[%emt 0:02:20]} Rc8 {[%emt 0:01:52]} 24. Bd5 {[%emt 0:01:07]} axb3 {[%emt 0:00:37]} 25. cxb3 {[%emt 0:00:14]} Be6 {[%emt 0:00:45]} 26. Bxe6 {[%emt 0:01:05]} fxe6 {[%emt 0:00:55]} 27. b4 {[%emt 0:02:08]} d5 {[%emt 0:00:50]} 28. Reb1 {[%emt 0:00:10]} d4 {[%emt 0:00:38]} 29. Bd2 {[%emt 0:04:24]} Rc2 {[%emt 0:05:56]} 30. Be1 {[%emt 0:01:43]} e4 {[%emt 0:02:07]} 31. Rc1 {[%emt 0:06:28]} Re2 {[%emt 0:01:55]} 32. b5 {[%emt 0:01:16]} Bg5 {[%emt 0:00:46]} 33. Rcb1 {[%emt 0:14:08]} d3 {[%emt 0:00:44]} 34. b6 {[%emt 0:02:58]} Kh7 {[%emt 0:00:50]} 35. Bb4 {[%emt 0:03:07]} Nd7 {[%emt 0:00:43]} 36. Bd6 {[%emt 0:00:19]} Bf6 {[%emt 0:01:12]} 37. Ra6 {[%emt 0:15:23]} Bd4 {[%emt 0:08:54]} 38. b7 {[%emt 0:00:00]} d2 {[%emt 0:04:20]} 39. Bb4 {[%emt 0:00:00]} Bc5 {[%emt 0:02:47]} 40. Ba5 {[%emt 0:00:00]} Rxf2 {[%emt 0:00:38]} 41. Rc6 {[%emt 0:00:00]} Rf8+ {[%emt 0:00:39]} 42. Rxc5 {[%emt 0:00:00]} Nxc5 {[%emt 0:02:07]} 43. Bxd2 {[%emt 0:00:00]} Nd7 {[%emt 0:04:51]} 44. Be3 {[%emt 0:00:00]} Kg6 {[%emt 0:00:37]} 45. Ba7 {[%emt 0:00:00]} Kf5 {[%emt 0:00:32]} 46. Rf1+ {[%emt 0:00:00]} 1-0

[Event "VIII Iberoamericano Mexico 2022"]
[Site "Mexico City"]
[Date "2022.02.15"]
[Round "4.48"]
[White "Macias Zamora, Jose Armando"]
[Black "Gutierrez Herrera, Jose Antonio"]
[Result "1-0"]
[ECO "B03"]
[WhiteElo "1488"]
[BlackElo "2059"]
[Annotator "ChessBase"]
[PlyCount "47"]
[EventDate "2022.02.12"]
[EventType "swiss"]
[EventCountry "MEX"]
[SourceTitle "playchess.com"]
[Source "ChessBase"]
[SourceQuality "1"]
[TimeControl "5400+30"]

1. e4 {[%emt 0:00:41]} Nf6 {[%emt 0:00:12]} 2. e5 {[%emt 0:00:40]} Nd5 {[%emt 0:00:06]} 3. c4 {[%emt 0:01:09]} Nb6 {[%emt 0:00:09]} 4. d4 {[%emt 0:00:17]} d6 {[%emt 0:00:08]} 5. exd6 {[%emt 0:00:23]} exd6 {[%emt 0:00:12]} 6. Nc3 {[%emt 0:01:54]} Be7 {[%emt 0:00:15]} 7. Nf3 {[%emt 0:03:21]} Bf5 {[%emt 0:00:41]} 8. Bd3 {[%emt 0:00:29]} Bxd3 {[%emt 0:02:57]} 9. Qxd3 {[%emt 0:00:15]} N8d7 {[%emt 0:00:08]} 10. O-O {[%emt 0:02:03]} O-O {[%emt 0:00:08]} 11. Bd2 {[%emt 0:11:26]} Re8 {[%emt 0:17:22]} 12. Rfe1 {[%emt 0:20:14]} Nf8 {[%emt 0:01:23]} 13. b4 {[%emt 0:08:09]} c6 {[%emt 0:07:00]} 14. d5 {[%emt 0:10:36]} Qd7 {[%emt 0:03:58]} 15. Rac1 {[%emt 0:02:46]} Ng6 {[%emt 0:03:26]} 16. Ne4 {[%emt 0:01:30]} cxd5 {[%emt 0:00:50]} 17. cxd5 {[%emt 0:00:08]} Rac8 {[%emt 0:03:49]} 18. Be3 {[%emt 0:02:31]} Rxc1 {[%emt 0:03:33]} 19. Rxc1 {[%emt 0:00:27]} Bd8 {[%emt 0:00:35]} 20. Nc3 {[%emt 0:13:24]} a6 {[%emt 0:14:57]} 21. Ne2 {[%emt 0:09:38]} Qa4 {[%emt 0:08:06]} 22. a3 {[%emt 0:00:44]} Qd7 {[%emt 0:07:09]} 23. Ng3 {[%emt 0:02:56]} Ne5 {[%emt 0:07:54]} 24. Qd1 {[%emt 0:06:16]} 1-0

[Event "VIII Iberoamericano Mexico 2022"]
[Site "Mexico City"]
[Date "2022.02.16"]
[Round "5.24"]
[White "Galaviz Medina, Sion Radamantys"]
[Black "Zacarias Rodriguez, Santiago"]
[Result "1-0"]
[ECO "E90"]
[WhiteElo "2374"]
[BlackElo "1896"]
[Annotator "ChessBase"]
[PlyCount "79"]
[EventDate "2022.02.12"]
[EventType "swiss"]
[EventCountry "MEX"]
[SourceTitle "playchess.com"]
[Source "ChessBase"]
[SourceQuality "1"]
[TimeControl "5400+30"]

1. d4 {[%emt 0:00:02]} Nf6 {[%emt 0:07:21]} 2. c4 {[%emt 0:00:05]} c5 {[%emt 0:00:11]} 3. d5 {[%emt 0:00:04]} d6 {[%emt 0:00:46]} 4. Nc3 {[%emt 0:00:17]} g6 {[%emt 0:00:06]} 5. e4 {[%emt 0:00:14]} Bg7 {[%emt 0:00:12]} 6. Bd3 {[%emt 0:00:05]} O-O {[%emt 0:00:27]} 7. h3 {[%emt 0:00:04]} e6 {[%emt 0:00:38]} 8. Nf3 {[%emt 0:00:11]} Nbd7 {[%emt 0:00:57]} 9. Bf4 {[%emt 0:01:46]} e5 {[%emt 0:02:53]} 10. Be3 {[%emt 0:00:26]} h6 {[%emt 0:06:35]} 11. g4 {[%emt 0:00:10]} Nh7 {[%emt 0:03:58]} 12. Qd2 {[%emt 0:00:39]} Qf6 {[%emt 0:01:47]} 13. Ke2 {[%emt 0:02:38]} Qe7 {[%emt 0:04:17]} 14. Bxh6 {[%emt 0:01:07]} Bxh6 {[%emt 0:03:41]} 15. Qxh6 {[%emt 0:00:06]} Rd8 {[%emt 0:08:26]} 16. Rag1 {[%emt 0:01:30]} Qf8 {[%emt 0:06:11]} 17. Qc1 {[%emt 0:00:06]} Ndf6 {[%emt 0:05:15]} 18. Nd1 b5 {[%emt 0:06:25]} 19. cxb5 {[%emt 0:03:36]} c4 {[%emt 0:04:16]} 20. Qxc4 {[%emt 0:06:39]} Bd7 {[%emt 0:01:00]} 21. a4 {[%emt 0:00:15]} Rac8 {[%emt 0:02:18]} 22. Qb4 {[%emt 0:00:12]} Rc1 {[%emt 0:02:39]} 23. Ne3 {[%emt 0:00:18]} Rxg1 {[%emt 0:00:20]} 24. Rxg1 {[%emt 0:00:01]} Rc8 {[%emt 0:02:25]} 25. Nc4 {[%emt 0:01:32]} Rc5 {[%emt 0:00:34]} 26. Na5 {[%emt 0:00:44]} Qb8 {[%emt 0:04:46]} 27. Nb3 {[%emt 0:07:12]} Rc8 {[%emt 0:00:09]} 28. a5 {[%emt 0:03:01]} Re8 {[%emt 0:00:16]} 29. Kd2 {[%emt 0:01:49]} Qb7 {[%emt 0:03:20]} 30. g5 {[%emt 0:02:00]} Nxd5 {[%emt 0:00:32]} 31. Qxd6 {[%emt 0:00:10]} Bxb5 {[%emt 0:04:43]} 32. Nc5 {[%emt 0:00:48]} Qc8 {[%emt 0:01:06]} 33. Bxb5 {[%emt 0:00:39]} Rd8 {[%emt 0:00:04]} 34. Bd7 {[%emt 0:00:05]} Nf8 {[%emt 0:03:39]} 35. Nxe5 {[%emt 0:00:24]} Nxd7 {[%emt 0:01:25]} 36. Ncxd7 {[%emt 0:00:20]} Qb7 {[%emt 0:01:12]} 37. Qxd5 {[%emt 0:00:35]} Qxb2+ {[%emt 0:00:12]} 38. Ke3 {[%emt 0:00:15]} Qa3+ {[%emt 0:00:35]} 39. Kf4 {[%emt 0:00:50]} Qe7 {[%emt 0:00:02]} 40. Nc6 {[%emt 0:00:28]} 1-0

[Event "VIII Iberoamericano Mexico 2022"]
[Site "Mexico City"]
[Date "2022.02.16"]
[Round "5.25"]
[White "Martin Del Campo C., Jorge"]
[Black "Noboa Silva, Kevin"]
[Result "0-1"]
[ECO "A23"]
[WhiteElo "2019"]
[BlackElo "2331"]
[Annotator "ChessBase"]
[PlyCount "76"]
[EventDate "2022.02.12"]
[EventType "swiss"]
[EventCountry "MEX"]
[SourceTitle "playchess.com"]
[Source "ChessBase"]
[SourceQuality "1"]
[TimeControl "5400+30"]

1. c4 {[%emt 0:00:05]} Nf6 {[%emt 0:00:15]} 2. Nc3 {[%emt 0:00:22]} c5 {[%emt 0:01:01]} 3. g3 {[%emt 0:00:18]} e6 {[%emt 0:00:13]} 4. Bg2 {[%emt 0:00:19]} d5 {[%emt 0:00:15]} 5. cxd5 {[%emt 0:06:02]} exd5 {[%emt 0:00:18]} 6. d4 {[%emt 0:03:47]} cxd4 {[%emt 0:00:36]} 7. Qxd4 {[%emt 0:00:33]} Nc6 {[%emt 0:00:31]} 8. Qd1 {[%emt 0:01:33]} d4 {[%emt 0:01:17]} 9. Ne4 {[%emt 0:00:56]} Be7 {[%emt 0:04:21]} 10. Nxf6+ {[%emt 0:00:54]} Bxf6 {[%emt 0:00:06]} 11. Nf3 {[%emt 0:00:09]} O-O {[%emt 0:00:14]} 12. O-O {[%emt 0:00:08]} Re8 {[%emt 0:01:26]} 13. Re1 {[%emt 0:04:19]} Bf5 {[%emt 0:02:25]} 14. Qb3 {[%emt 0:06:06]} Be4 {[%emt 0:04:50]} 15. Bd2 {[%emt 0:05:14]} Bd5 {[%emt 0:03:00]} 16. Qa3 {[%emt 0:08:32]} Qb6 {[%emt 0:05:22]} 17. Rac1 {[%emt 0:11:42]} Rad8 {[%emt 0:05:49]} 18. b3 {[%emt 0:00:56]} h6 {[%emt 0:03:53]} 19. Kf1 {[%emt 0:04:50]} Be7 {[%emt 0:04:18]} 20. Qa4 {[%emt 0:02:49]} Bf8 {[%emt 0:04:23]} 21. Nh4 {[%emt 0:04:28]} Re5 {[%emt 0:02:47]} 22. Bxd5 {[%emt 0:03:12]} Rexd5 {[%emt 0:00:18]} 23. Nf3 {[%emt 0:00:17]} Qc7 {[%emt 0:01:46]} 24. Qc4 {[%emt 0:03:32]} Qd7 {[%emt 0:00:34]} 25. Kg2 {[%emt 0:01:39]} Ba3 {[%emt 0:04:37]} 26. Rcd1 {[%emt 0:00:54]} d3 {[%emt 0:00:21]} 27. e4 {[%emt 0:06:44]} Rh5 {[%emt 0:00:22]} 28. h4 {[%emt 0:00:59]} b5 {[%emt 0:00:19]} 29. Qc3 {[%emt 0:00:43]} Rc5 {[%emt 0:00:55]} 30. Qa1 {[%emt 0:00:15]} Rc2 {[%emt 0:00:49]} 31. Bc3 {[%emt 0:04:53]} Qg4 {[%emt 0:06:26]} 32. Re3 {[%emt 0:02:57]} Bc5 {[%emt 0:00:41]} 33. Bd2 {[%emt 0:06:02]} Bxe3 {[%emt 0:00:26]} 34. Bxe3 {[%emt 0:00:06]} Qxe4 {[%emt 0:00:21]} 35. Rd2 {[%emt 0:01:51]} Rxd2 {[%emt 0:00:51]} 36. Bxd2 {[%emt 0:00:06]} Nd4 {[%emt 0:00:27]} 37. Qd1 {[%emt 0:00:07]} Rd5 {[%emt 0:00:23]} 38. Be3 {[%emt 0:00:06]} Nxf3 {[%emt 0:42:34]} 0-1

[Event "VIII Iberoamericano Mexico 2022"]
[Site "Mexico City"]
[Date "2022.02.16"]
[Round "5.26"]
[White "Flores Guerrero, Jesus Aldair"]
[Black "Ramirez Toledo, Ayleen Maribel"]
[Result "0-1"]
[ECO "A02"]
[WhiteElo "2251"]
[BlackElo "1810"]
[Annotator "ChessBase"]
[PlyCount "86"]
[EventDate "2022.02.12"]
[EventType "swiss"]
[EventCountry "MEX"]
[SourceTitle "playchess.com"]
[Source "ChessBase"]
[SourceQuality "1"]
[TimeControl "5400+30"]

1. f4 {[%emt 0:10:31]} Nf6 {[%emt 0:00:09]} 2. Nf3 {[%emt 0:00:08]} g6 {[%emt 0:00:06]} 3. b3 {[%emt 0:00:03]} Bg7 {[%emt 0:00:06]} 4. Bb2 {[%emt 0:00:04]} O-O {[%emt 0:00:09]} 5. g3 {[%emt 0:03:47]} d6 {[%emt 0:00:11]} 6. Qc1 {[%emt 0:00:30]} c5 {[%emt 0:00:52]} 7. Bg2 {[%emt 0:00:09]} Nc6 {[%emt 0:00:06]} 8. O-O {[%emt 0:00:12]} Bd7 {[%emt 0:02:59]} 9. d3 {[%emt 0:02:40]} Qc7 {[%emt 0:02:56]} 10. e4 {[%emt 0:00:42]} Rab8 {[%emt 0:10:24]} 11. h3 {[%emt 0:01:31]} e5 {[%emt 0:08:54]} 12. fxe5 {[%emt 0:03:10]} dxe5 {[%emt 0:00:18]} 13. g4 {[%emt 0:02:31]} Nd4 {[%emt 0:01:53]} 14. Re1 {[%emt 0:02:46]} b5 {[%emt 0:32:30]} 15. Nbd2 {[%emt 0:03:00]} Ne8 {[%emt 0:02:51]} 16. c3 {[%emt 0:01:39]} Ne6 {[%emt 0:01:04]} 17. Nf1 {[%emt 0:00:55]} Nf4 {[%emt 0:01:02]} 18. Qe3 {[%emt 0:00:16]} Qc8 {[%emt 0:06:25]} 19. d4 {[%emt 0:07:25]} cxd4 {[%emt 0:06:08]} 20. cxd4 {[%emt 0:00:28]} Qc2 {[%emt 0:08:14]} 21. Qd2 {[%emt 0:00:20]} Qxd2 {[%emt 0:01:33]} 22. N1xd2 {[%emt 0:00:12]} Nd3 {[%emt 0:00:18]} 23. Re3 {[%emt 0:26:12]} Nxb2 {[%emt 0:00:54]} 24. dxe5 {[%emt 0:01:29]} Rc8 {[%emt 0:05:55]} 25. Rb1 {[%emt 0:01:29]} Rc2 {[%emt 0:00:05]} 26. Kf2 {[%emt 0:02:50]} Nc7 {[%emt 0:03:00]} 27. Kg3 {[%emt 0:02:32]} Ne6 {[%emt 0:01:34]} 28. Nf1 {[%emt 0:00:07]} a5 {[%emt 0:03:09]} 29. Ne1 {[%emt 0:00:25]} Bxe5+ {[%emt 0:00:04]} 30. Kh4 {[%emt 0:01:52]} Rc3 {[%emt 0:00:47]} 31. Nf3 {[%emt 0:01:35]} Rxe3 {[%emt 0:00:45]} 32. Nxe3 {[%emt 0:00:08]} Bf6+ {[%emt 0:00:17]} 33. g5 {[%emt 0:01:52]} Nxg5 {[%emt 0:00:21]} 34. Nxg5 {[%emt 0:00:25]} h6 {[%emt 0:00:04]} 35. Kg3 {[%emt 0:01:00]} Bxg5 {[%emt 0:00:22]} 36. Nc2 {[%emt 0:04:35]} Nd3 {[%emt 0:00:22]} 37. Rd1 {[%emt 0:00:53]} Ne5 {[%emt 0:00:12]} 38. Rd5 {[%emt 0:00:14]} Rc8 {[%emt 0:01:45]} 39. Nd4 {[%emt 0:01:10]} Rc3+ {[%emt 0:00:07]} 40. Kh2 {[%emt 0:00:22]} Bf4+ {[%emt 0:00:32]} 41. Kg1 {[%emt 0:00:06]} Be3+ {[%emt 0:00:38]} 42. Kh2 {[%emt 0:00:43]} Bxd4 {[%emt 0:00:11]} 43. Rxd4 {[%emt 0:00:05]} Rd3 {[%emt 0:01:48]} 0-1